[Event "*** Titled Tuesday Blitz"]
[Site "Chess.com"]
[Date "2020.12.29"]
[Round "8"]
[White "ClydeHillKid"]
[Black "IrishMonkey"]
[Result "0-1"]
[WhiteElo "2380"]
[BlackElo "2631"]
[TimeControl "180+1"]
[EndTime "11:25:18 PST"]
[Termination "IrishMonkey won by resignation"]

1. e4 {[%clk 0:03:00.9]} 1... c5 {[%clk 0:02:57.9]} 2. Nf3 {[%clk 0:03:01.1]}
2... d6 {[%clk 0:02:56.1]} 3. d4 {[%clk 0:03:01.1]} 3... cxd4 {[%clk 0:02:55.8]}
4. Nxd4 {[%clk 0:03:02]} 4... Nf6 {[%clk 0:02:54.5]} 5. Nc3 {[%clk 0:03:02.1]}
5... e6 {[%clk 0:02:53.8]} 6. Be3 {[%clk 0:03:00.6]} 6... Nc6 {[%clk 0:02:51.7]}
7. Bd3 {[%clk 0:02:44.8]} 7... Be7 {[%clk 0:02:48.2]} 8. O-O {[%clk 0:02:44.6]}
8... O-O {[%clk 0:02:47.5]} 9. Nxc6 {[%clk 0:02:21.9]} 9... bxc6 {[%clk
0:02:45]} 10. f4 {[%clk 0:02:22.8]} 10... d5 {[%clk 0:02:41.8]} 11. e5 {[%clk
0:02:15]} 11... Nd7 {[%clk 0:02:42.4]} 12. Ne2 {[%clk 0:02:09.7]} 12... Rb8
{[%clk 0:02:38.8]} 13. b3 {[%clk 0:02:06.9]} 13... c5 {[%clk 0:02:38.9]} 14. c3
{[%clk 0:02:07.1]} 14... g6 {[%clk 0:02:35.8]} 15. Ng3 {[%clk 0:01:52]} 15... f6
{[%clk 0:02:32.8]} 16. Qg4 {[%clk 0:01:50.8]} 16... f5 {[%clk 0:02:28.4]} 17.
Qe2 {[%clk 0:01:34.3]} 17... Bb7 {[%clk 0:02:24.1]} 18. Nh1 {[%clk 0:01:22.3]}
18... Nb6 {[%clk 0:02:20.6]} 19. Nf2 {[%clk 0:01:17]} 19... d4 {[%clk
0:02:17.6]} 20. cxd4 {[%clk 0:01:04.2]} 20... cxd4 {[%clk 0:02:18.5]} 21. Bd2
{[%clk 0:01:04.6]} 21... Qd7 {[%clk 0:02:14.9]} 22. Rfc1 {[%clk 0:01:02.9]}
22... Ba3 {[%clk 0:02:11.6]} 23. Rc2 {[%clk 0:01:02.5]} 23... Rfc8 {[%clk
0:02:09.5]} 24. Bc1 {[%clk 0:00:50.6]} 24... Rxc2 {[%clk 0:02:01.3]} 25. Qxc2
{[%clk 0:00:49.8]} 25... Rc8 {[%clk 0:02:01.4]} 26. Qd2 {[%clk 0:00:49.7]} 26...
Qc6 {[%clk 0:01:59.4]} 27. Be4 {[%clk 0:00:42.9]} 27... fxe4 {[%clk 0:01:56.7]}
28. Bxa3 {[%clk 0:00:40.1]} 28... e3 {[%clk 0:01:49.9]} 0-1

[Event "*** Titled Tuesday Blitz"]
[Site "Chess.com"]
[Date "2020.12.29"]
[Round "8"]
[White "chessuriel"]
[Black "omer1997"]
[Result "1-0"]
[WhiteElo "2239"]
[BlackElo "2333"]
[TimeControl "180+1"]
[EndTime "11:25:25 PST"]
[Termination "chessuriel won on time"]

1. e4 {[%clk 0:03:00.9]} 1... e5 {[%clk 0:02:58.7]} 2. Nf3 {[%clk 0:03:01.3]}
2... Nf6 {[%clk 0:02:57]} 3. Nxe5 {[%clk 0:03:00.1]} 3... d6 {[%clk 0:02:56.6]}
4. Nf3 {[%clk 0:03:00.4]} 4... Nxe4 {[%clk 0:02:56.3]} 5. Nc3 {[%clk 0:03:00.8]}
5... Nxc3 {[%clk 0:02:56.1]} 6. dxc3 {[%clk 0:03:01.7]} 6... Nc6 {[%clk
0:02:56.8]} 7. Bf4 {[%clk 0:02:59.7]} 7... Be7 {[%clk 0:02:57]} 8. Qd2 {[%clk
0:02:58.9]} 8... Be6 {[%clk 0:02:56.7]} 9. O-O-O {[%clk 0:02:56.8]} 9... Qd7
{[%clk 0:02:55.8]} 10. Ng5 {[%clk 0:02:48.3]} 10... O-O-O {[%clk 0:02:33.7]} 11.
Nxe6 {[%clk 0:02:47.1]} 11... fxe6 {[%clk 0:02:34.6]} 12. Bb5 {[%clk 0:02:41.3]}
12... a6 {[%clk 0:02:31.5]} 13. Ba4 {[%clk 0:02:40.7]} 13... Kb8 {[%clk
0:02:27.9]} 14. Rhe1 {[%clk 0:02:34.3]} 14... Bf6 {[%clk 0:02:22]} 15. Qd3
{[%clk 0:02:26.9]} 15... h6 {[%clk 0:02:19.7]} 16. Kb1 {[%clk 0:02:12.1]} 16...
Rhe8 {[%clk 0:02:19.2]} 17. Bg3 {[%clk 0:01:56]} 1-0

[Event "*** Titled Tuesday Blitz"]
[Site "Chess.com"]
[Date "2020.12.29"]
[Round "8"]
[White "NaciSAN"]
[Black "Spriteball"]
[Result "0-1"]
[WhiteElo "2167"]
[BlackElo "2327"]
[TimeControl "180+1"]
[EndTime "11:25:43 PST"]
[Termination "Spriteball won by resignation"]

1. e4 {[%clk 0:03:00.9]} 1... c5 {[%clk 0:02:59.7]} 2. Nf3 {[%clk 0:03:01]} 2...
d6 {[%clk 0:03:00.1]} 3. Bb5+ {[%clk 0:03:01]} 3... Nd7 {[%clk 0:02:59]} 4. O-O
{[%clk 0:03:00.5]} 4... a6 {[%clk 0:02:58.7]} 5. Bd3 {[%clk 0:03:00.1]} 5...
Ngf6 {[%clk 0:02:58.8]} 6. c3 {[%clk 0:03:00.3]} 6... g6 {[%clk 0:02:58]} 7. Bc2
{[%clk 0:03:00.7]} 7... Bg7 {[%clk 0:02:58.3]} 8. d4 {[%clk 0:03:01.3]} 8...
cxd4 {[%clk 0:02:58.1]} 9. cxd4 {[%clk 0:03:02.2]} 9... O-O {[%clk 0:02:57.6]}
10. Nc3 {[%clk 0:03:01.9]} 10... b5 {[%clk 0:02:57.6]} 11. a3 {[%clk 0:03:01.6]}
11... Bb7 {[%clk 0:02:57.8]} 12. Re1 {[%clk 0:03:00.6]} 12... e5 {[%clk
0:02:55]} 13. h3 {[%clk 0:02:52.9]} 13... Rc8 {[%clk 0:02:52.9]} 14. Bg5 {[%clk
0:02:44.4]} 14... h6 {[%clk 0:02:46.3]} 15. Bh4 {[%clk 0:02:44.4]} 15... exd4
{[%clk 0:02:36.6]} 16. Nxd4 {[%clk 0:02:41.3]} 16... Ne5 {[%clk 0:02:36.8]} 17.
Bb3 {[%clk 0:02:24.8]} 17... Nc4 {[%clk 0:02:33]} 18. Bxc4 {[%clk 0:02:20.9]}
18... Rxc4 {[%clk 0:02:32.4]} 19. Nde2 {[%clk 0:01:48.6]} 19... g5 {[%clk
0:02:26.2]} 20. Bg3 {[%clk 0:01:48.8]} 20... Nxe4 {[%clk 0:02:26.5]} 21. Nxe4
{[%clk 0:01:48.8]} 21... Rxe4 {[%clk 0:02:23.6]} 22. Bxd6 {[%clk 0:01:44.6]}
22... Rfe8 {[%clk 0:02:19.4]} 23. Rc1 {[%clk 0:00:57.3]} 23... R4e6 {[%clk
0:02:09.8]} 24. Bg3 {[%clk 0:00:31.4]} 24... Qxd1 {[%clk 0:02:08.2]} 25. Rexd1
{[%clk 0:00:31.7]} 25... Rxe2 {[%clk 0:02:08.4]} 26. Rd7 {[%clk 0:00:29.9]}
26... Be4 {[%clk 0:02:01.2]} 27. Rcc7 {[%clk 0:00:28.5]} 27... Bg6 {[%clk
0:02:00.2]} 28. b4 {[%clk 0:00:25.5]} 28... Ra2 {[%clk 0:01:56.5]} 0-1

[Event "*** Titled Tuesday Blitz"]
[Site "Chess.com"]
[Date "2020.12.29"]
[Round "8"]
[White "Kolle05"]
[Black "Iskusnyh"]
[Result "0-1"]
[WhiteElo "2387"]
[BlackElo "2566"]
[TimeControl "180+1"]
[EndTime "11:25:54 PST"]
[Termination "Iskusnyh won by checkmate"]

1. e4 {[%clk 0:03:00.9]} 1... e6 {[%clk 0:02:59.4]} 2. d4 {[%clk 0:02:59.3]}
2... d5 {[%clk 0:02:59.9]} 3. Nd2 {[%clk 0:02:59.7]} 3... c5 {[%clk 0:02:58.5]}
4. Ngf3 {[%clk 0:02:59.5]} 4... Nc6 {[%clk 0:02:56.8]} 5. exd5 {[%clk
0:02:59.1]} 5... exd5 {[%clk 0:02:56.5]} 6. dxc5 {[%clk 0:02:58.7]} 6... Bxc5
{[%clk 0:02:55.7]} 7. Bd3 {[%clk 0:02:58.8]} 7... Nf6 {[%clk 0:02:55]} 8. O-O
{[%clk 0:02:58.3]} 8... O-O {[%clk 0:02:54.9]} 9. Nb3 {[%clk 0:02:58.3]} 9...
Bb6 {[%clk 0:02:55]} 10. h3 {[%clk 0:02:50.8]} 10... Ne4 {[%clk 0:02:51.5]} 11.
c3 {[%clk 0:02:47.9]} 11... Qf6 {[%clk 0:02:48.8]} 12. a4 {[%clk 0:02:40.3]}
12... a6 {[%clk 0:02:27.2]} 13. Nfd4 {[%clk 0:02:15.4]} 13... Bd7 {[%clk
0:02:18.3]} 14. Be3 {[%clk 0:02:12.6]} 14... Bc7 {[%clk 0:02:13.1]} 15. Qf3
{[%clk 0:02:09.8]} 15... Qd6 {[%clk 0:02:06.5]} 16. g3 {[%clk 0:02:04.3]} 16...
Ne5 {[%clk 0:02:05.7]} 17. Bxe4 {[%clk 0:01:47.3]} 17... Nxf3+ {[%clk
0:02:03.3]} 18. Bxf3 {[%clk 0:01:48.2]} 18... Bxh3 {[%clk 0:01:59.3]} 19. Rfd1
{[%clk 0:01:47]} 19... Qg6 {[%clk 0:01:37.5]} 20. Kh2 {[%clk 0:01:35.2]} 20...
Bg4 {[%clk 0:01:36.3]} 21. Kg2 {[%clk 0:01:32]} 21... Rfe8 {[%clk 0:01:32.1]}
22. Re1 {[%clk 0:01:17.6]} 22... h5 {[%clk 0:01:30.9]} 23. Bxd5 {[%clk
0:01:14.4]} 23... h4 {[%clk 0:01:27.5]} 24. Rh1 {[%clk 0:01:00.3]} 24... hxg3
{[%clk 0:01:22.8]} 25. f3 {[%clk 0:01:00.4]} 25... Rxe3 {[%clk 0:01:20.4]} 26.
fxg4 {[%clk 0:01:00.7]} 26... Rae8 {[%clk 0:01:13.4]} 27. Bf3 {[%clk 0:00:59.7]}
27... Rxf3 {[%clk 0:01:08.7]} 28. Kxf3 {[%clk 0:00:54.4]} 28... Qe4# {[%clk
0:01:07.8]} 0-1

[Event "*** Titled Tuesday Blitz"]
[Site "Chess.com"]
[Date "2020.12.29"]
[Round "8"]
[White "juli2512"]
[Black "Kaslask"]
[Result "0-1"]
[WhiteElo "2110"]
[BlackElo "2276"]
[TimeControl "180+1"]
[EndTime "11:25:54 PST"]
[Termination "Kaslask won by resignation"]

1. e4 {[%clk 0:03:00.9]} 1... c5 {[%clk 0:02:58.1]} 2. Nc3 {[%clk 0:02:58.9]}
2... Nc6 {[%clk 0:02:56.6]} 3. g3 {[%clk 0:02:59.3]} 3... g6 {[%clk 0:02:55.8]}
4. Bg2 {[%clk 0:02:59.6]} 4... Bg7 {[%clk 0:02:55.7]} 5. d3 {[%clk 0:03:00.2]}
5... e5 {[%clk 0:02:54.9]} 6. f4 {[%clk 0:02:55.8]} 6... exf4 {[%clk 0:02:46.1]}
7. Bxf4 {[%clk 0:02:54.9]} 7... d6 {[%clk 0:02:39.6]} 8. Nf3 {[%clk 0:02:52.6]}
8... h6 {[%clk 0:02:38.4]} 9. Qd2 {[%clk 0:02:50.8]} 9... Nge7 {[%clk
0:02:37.7]} 10. O-O {[%clk 0:02:48.4]} 10... Nd4 {[%clk 0:02:34.4]} 11. Kh1
{[%clk 0:02:42.5]} 11... Bg4 {[%clk 0:02:30.9]} 12. Nxd4 {[%clk 0:02:36.1]}
12... cxd4 {[%clk 0:02:29.5]} 13. Nd1 {[%clk 0:02:25.5]} 13... Nc6 {[%clk
0:02:22.1]} 14. Nf2 {[%clk 0:02:14.6]} 14... Be6 {[%clk 0:02:20]} 15. Qe2 {[%clk
0:02:09.4]} 15... Qd7 {[%clk 0:02:16.9]} 16. a3 {[%clk 0:02:05.2]} 16... h5
{[%clk 0:01:57.6]} 17. Rae1 {[%clk 0:01:38.5]} 17... h4 {[%clk 0:01:55.7]} 18.
g4 {[%clk 0:01:35.2]} 18... h3 {[%clk 0:01:48.9]} 19. Bxh3 {[%clk 0:01:32.7]}
19... Ne5 {[%clk 0:01:45.7]} 20. Rg1 {[%clk 0:01:27.2]} 20... O-O-O {[%clk
0:01:41.7]} 21. Bg2 {[%clk 0:01:11.7]} 21... Qe7 {[%clk 0:01:34.5]} 22. c3
{[%clk 0:01:08.5]} 22... dxc3 {[%clk 0:01:31.1]} 23. bxc3 {[%clk 0:01:07.9]}
23... Qh4 {[%clk 0:01:28.4]} 24. d4 {[%clk 0:00:50.2]} 24... Bxg4 {[%clk
0:01:27.2]} 25. Qd3 {[%clk 0:00:33.7]} 25... Nxd3 {[%clk 0:01:23.1]} 0-1

[Event "*** Titled Tuesday Blitz"]
[Site "Chess.com"]
[Date "2020.12.29"]
[Round "8"]
[White "Vuk2000"]
[Black "BAS8892"]
[Result "1-0"]
[WhiteElo "2822"]
[BlackElo "2639"]
[TimeControl "180+1"]
[EndTime "11:25:57 PST"]
[Termination "Vuk2000 won by resignation"]

1. d4 {[%clk 0:03:00.9]} 1... d5 {[%clk 0:02:59.6]} 2. Bf4 {[%clk 0:03:01.1]}
2... Nf6 {[%clk 0:02:58.9]} 3. e3 {[%clk 0:03:01.5]} 3... e6 {[%clk 0:02:59.2]}
4. Nd2 {[%clk 0:03:00.8]} 4... Bd6 {[%clk 0:02:59.8]} 5. Bg3 {[%clk 0:03:01]}
5... O-O {[%clk 0:03:00.3]} 6. Ngf3 {[%clk 0:03:01.1]} 6... c5 {[%clk
0:03:00.4]} 7. c3 {[%clk 0:03:01.2]} 7... Qc7 {[%clk 0:03:00.3]} 8. dxc5 {[%clk
0:03:00.8]} 8... Qxc5 {[%clk 0:03:01.2]} 9. Bd3 {[%clk 0:03:00.6]} 9... Bxg3
{[%clk 0:02:57.3]} 10. hxg3 {[%clk 0:03:00]} 10... Nc6 {[%clk 0:02:57.8]} 11. e4
{[%clk 0:02:52.6]} 11... e5 {[%clk 0:02:55.2]} 12. exd5 {[%clk 0:02:35.1]} 12...
Qxd5 {[%clk 0:02:54.8]} 13. Qe2 {[%clk 0:02:34.8]} 13... Rd8 {[%clk 0:02:52.9]}
14. Bc4 {[%clk 0:02:25.3]} 14... Qc5 {[%clk 0:02:52.9]} 15. Ng5 {[%clk
0:02:22.1]} 15... Rd7 {[%clk 0:02:48.4]} 16. Nde4 {[%clk 0:02:08.4]} 16... Qe7
{[%clk 0:02:16.1]} 17. Nxf7 {[%clk 0:01:25.3]} 17... Kf8 {[%clk 0:02:05.6]} 18.
Nfg5 {[%clk 0:01:13.5]} 18... h6 {[%clk 0:02:04.9]} 19. Nxf6 {[%clk 0:01:01.9]}
19... gxf6 {[%clk 0:02:04.6]} 20. Rxh6 {[%clk 0:00:51.6]} 20... fxg5 {[%clk
0:01:59.8]} 21. Rh8+ {[%clk 0:00:51.2]} 21... Kg7 {[%clk 0:01:59.3]} 22. Qh5
{[%clk 0:00:49.5]} 22... Kf6 {[%clk 0:01:53.5]} 23. Qh6+ {[%clk 0:00:36.8]}
23... Kf5 {[%clk 0:01:52.3]} 24. g4+ {[%clk 0:00:37.1]} 24... Kf4 {[%clk
0:01:48.8]} 25. Qh2+ {[%clk 0:00:36.1]} 25... Ke4 {[%clk 0:01:48.3]} 26. f3+
{[%clk 0:00:15.5]} 26... Ke3 {[%clk 0:01:48]} 27. Qg1+ {[%clk 0:00:16.3]} 27...
Kf4 {[%clk 0:01:48.3]} 28. g3+ {[%clk 0:00:17.1]} 28... Kxf3 {[%clk 0:01:48.3]}
29. Be2+ {[%clk 0:00:17.8]} 29... Ke4 {[%clk 0:01:47.2]} 30. Qg2+ {[%clk
0:00:18.6]} 1-0

[Event "*** Titled Tuesday Blitz"]
[Site "Chess.com"]
[Date "2020.12.29"]
[Round "8"]
[White "szabadaba"]
[Black "TomasKapitanchuk"]
[Result "0-1"]
[WhiteElo "2581"]
[BlackElo "2476"]
[TimeControl "180+1"]
[EndTime "11:26:03 PST"]
[Termination "TomasKapitanchuk won by resignation"]

1. e4 {[%clk 0:03:00.2]} 1... c5 {[%clk 0:03:00.5]} 2. Nc3 {[%clk 0:02:59.9]}
2... Nc6 {[%clk 0:03:00.2]} 3. g3 {[%clk 0:03:00.5]} 3... g6 {[%clk 0:03:00.5]}
4. Bg2 {[%clk 0:03:01.1]} 4... Bg7 {[%clk 0:03:01.1]} 5. d3 {[%clk 0:03:01.7]}
5... Rb8 {[%clk 0:03:00.8]} 6. f4 {[%clk 0:03:00.4]} 6... b5 {[%clk 0:03:00.9]}
7. Nf3 {[%clk 0:03:00.6]} 7... b4 {[%clk 0:03:00.6]} 8. Ne2 {[%clk 0:03:00.6]}
8... e6 {[%clk 0:03:00.1]} 9. O-O {[%clk 0:03:00.3]} 9... Nge7 {[%clk
0:03:00.5]} 10. Rb1 {[%clk 0:03:00.2]} 10... d6 {[%clk 0:02:59.8]} 11. Be3
{[%clk 0:03:00.1]} 11... O-O {[%clk 0:03:00]} 12. Qd2 {[%clk 0:03:00.4]} 12...
a5 {[%clk 0:02:59.1]} 13. Nh4 {[%clk 0:02:59]} 13... f5 {[%clk 0:02:58.2]} 14.
exf5 {[%clk 0:02:59]} 14... gxf5 {[%clk 0:02:58.5]} 15. Bf2 {[%clk 0:02:58.8]}
15... Bb7 {[%clk 0:02:57.5]} 16. Rfe1 {[%clk 0:02:58.6]} 16... Qd7 {[%clk
0:02:56.8]} 17. Nf3 {[%clk 0:02:58.3]} 17... Na7 {[%clk 0:02:55]} 18. d4 {[%clk
0:02:55.8]} 18... c4 {[%clk 0:02:55.3]} 19. d5 {[%clk 0:02:43.9]} 19... Bxd5
{[%clk 0:02:52]} 20. Ned4 {[%clk 0:02:35.9]} 20... Rfe8 {[%clk 0:02:44.3]} 21.
Ng5 {[%clk 0:02:30.4]} 21... Bxg2 {[%clk 0:02:41.8]} 22. Kxg2 {[%clk 0:02:30.1]}
22... e5 {[%clk 0:02:42.4]} 23. Ndf3 {[%clk 0:02:29.1]} 23... e4 {[%clk
0:02:36.3]} 24. Nh4 {[%clk 0:02:26.8]} 24... Nac6 {[%clk 0:02:29.7]} 25. Rbd1
{[%clk 0:02:06.9]} 25... d5 {[%clk 0:02:29.5]} 26. Qe2 {[%clk 0:02:06.1]} 26...
Bxb2 {[%clk 0:02:26.1]} 27. Qxc4 {[%clk 0:02:03.3]} 27... Bc3 {[%clk 0:02:21.7]}
28. Rf1 {[%clk 0:01:58.8]} 28... Rbd8 {[%clk 0:02:09]} 29. Qb5 {[%clk
0:01:54.9]} 29... Ne5 {[%clk 0:02:02.4]} 30. Qxa5 {[%clk 0:01:24.4]} 30... Ng4
{[%clk 0:02:01.5]} 31. Bc5 {[%clk 0:01:07.2]} 31... Nc6 {[%clk 0:01:56.1]} 32.
Qb5 {[%clk 0:01:02.9]} 32... h6 {[%clk 0:01:49.1]} 33. Nh3 {[%clk 0:00:48.3]}
33... d4 {[%clk 0:01:49.2]} 34. Kh1 {[%clk 0:00:39.7]} 34... Qd5 {[%clk
0:01:47.5]} 0-1

[Event "*** Titled Tuesday Blitz"]
[Site "Chess.com"]
[Date "2020.12.29"]
[Round "8"]
[White "hansen"]
[Black "gahryman"]
[Result "1-0"]
[WhiteElo "2894"]
[BlackElo "2681"]
[TimeControl "180+1"]
[EndTime "11:26:06 PST"]
[Termination "hansen won by resignation"]

1. e4 {[%clk 0:03:00.9]} 1... c5 {[%clk 0:03:00.1]} 2. Nf3 {[%clk 0:02:58.6]}
2... e6 {[%clk 0:03:01]} 3. d4 {[%clk 0:02:58.7]} 3... cxd4 {[%clk 0:03:01.9]}
4. Nxd4 {[%clk 0:02:59.5]} 4... Nc6 {[%clk 0:03:02.7]} 5. Nc3 {[%clk 0:03:00.1]}
5... Qc7 {[%clk 0:03:03.1]} 6. Be3 {[%clk 0:03:00.6]} 6... a6 {[%clk 0:03:03.1]}
7. Qf3 {[%clk 0:03:00.9]} 7... d6 {[%clk 0:03:03]} 8. O-O-O {[%clk 0:03:00.8]}
8... Bd7 {[%clk 0:03:03]} 9. Qg3 {[%clk 0:02:59.1]} 9... Nf6 {[%clk 0:03:01.8]}
10. f4 {[%clk 0:02:57]} 10... Rc8 {[%clk 0:02:59.5]} 11. Kb1 {[%clk 0:02:56.8]}
11... b6 {[%clk 0:02:51]} 12. Bxa6 {[%clk 0:02:54.9]} 12... Ra8 {[%clk
0:02:41.3]} 13. Be2 {[%clk 0:02:09.7]} 13... h5 {[%clk 0:02:15]} 14. Ndb5 {[%clk
0:02:09.1]} 14... Qb8 {[%clk 0:02:14.9]} 15. e5 {[%clk 0:01:56.3]} 15... dxe5
{[%clk 0:02:09.3]} 16. fxe5 {[%clk 0:01:55.7]} 16... Ng4 {[%clk 0:02:04]} 17.
Bf4 {[%clk 0:01:34]} 17... Bc5 {[%clk 0:02:00]} 18. Bxg4 {[%clk 0:01:23.7]}
18... hxg4 {[%clk 0:01:59.8]} 19. Qxg4 {[%clk 0:01:24.3]} 19... Nxe5 {[%clk
0:01:26.7]} 20. Qxg7 {[%clk 0:01:19.9]} 20... Rh5 {[%clk 0:01:26.8]} 21. g4
{[%clk 0:01:08]} 21... Bf8 {[%clk 0:01:15]} 22. Qg8 {[%clk 0:01:00.9]} 1-0

[Event "*** Titled Tuesday Blitz"]
[Site "Chess.com"]
[Date "2020.12.29"]
[Round "8"]
[White "jcibarra"]
[Black "sergiochess83"]
[Result "1/2-1/2"]
[WhiteElo "2897"]
[BlackElo "2813"]
[TimeControl "180+1"]
[EndTime "11:26:08 PST"]
[Termination "Game drawn by agreement"]

1. Nf3 {[%clk 0:03:00.9]} 1... d5 {[%clk 0:02:57.8]} 2. g3 {[%clk 0:03:00.7]}
2... g6 {[%clk 0:02:55]} 3. Bg2 {[%clk 0:02:57.3]} 3... Bg7 {[%clk 0:02:55]} 4.
c4 {[%clk 0:02:58]} 4... dxc4 {[%clk 0:02:52.5]} 5. Qa4+ {[%clk 0:02:58]} 5...
Nc6 {[%clk 0:02:51.7]} 6. O-O {[%clk 0:02:58.7]} 6... e5 {[%clk 0:02:49.7]} 7.
Nxe5 {[%clk 0:02:58]} 7... Bxe5 {[%clk 0:02:46.4]} 8. Bxc6+ {[%clk 0:02:58.4]}
8... bxc6 {[%clk 0:02:39.4]} 9. Qxc6+ {[%clk 0:02:59.3]} 9... Bd7 {[%clk
0:02:38.9]} 10. Qe4 {[%clk 0:02:58.2]} 10... f6 {[%clk 0:02:33.4]} 11. f4 {[%clk
0:02:57.9]} 11... Bf5 {[%clk 0:02:31.9]} 12. Qc6+ {[%clk 0:02:57.7]} 12... Bd7
{[%clk 0:02:31.6]} 13. Qe4 {[%clk 0:02:57.1]} 13... Bf5 {[%clk 0:02:31.8]} 14.
Qe3 {[%clk 0:02:48.6]} 14... Qd4 {[%clk 0:02:21.7]} 15. fxe5 {[%clk 0:02:43]}
15... Qxe3+ {[%clk 0:02:22]} 16. dxe3 {[%clk 0:02:43.7]} 16... fxe5 {[%clk
0:02:22.9]} 17. Na3 {[%clk 0:02:12.4]} 17... c3 {[%clk 0:02:10.6]} 18. bxc3
{[%clk 0:02:11.1]} 18... Ne7 {[%clk 0:02:03.9]} 19. Nc4 {[%clk 0:02:10.4]} 19...
Nc6 {[%clk 0:02:03.7]} 20. e4 {[%clk 0:01:53.4]} 20... Bxe4 {[%clk 0:01:57.1]}
21. Bg5 {[%clk 0:01:53.1]} 21... Rf8 {[%clk 0:01:35]} 22. Rxf8+ {[%clk
0:01:26.2]} 22... Kxf8 {[%clk 0:01:34.7]} 23. Rf1+ {[%clk 0:01:26.6]} 23... Ke8
{[%clk 0:01:23.5]} 24. Bf6 {[%clk 0:01:08.9]} 24... Bd5 {[%clk 0:01:18.2]} 25.
Nxe5 {[%clk 0:01:06.8]} 25... Nxe5 {[%clk 0:01:18.3]} 26. Bxe5 {[%clk
0:01:07.7]} 26... Bxa2 {[%clk 0:01:18.4]} 27. Bxc7 {[%clk 0:01:02.7]} 27... a5
{[%clk 0:01:13.9]} 28. Bd6 {[%clk 0:00:59.2]} 28... Kd7 {[%clk 0:01:09.7]} 29.
Rf8 {[%clk 0:00:49.5]} 29... Rxf8 {[%clk 0:01:03.6]} 30. Bxf8 {[%clk 0:00:49.6]}
1/2-1/2

[Event "*** Titled Tuesday Blitz"]
[Site "Chess.com"]
[Date "2020.12.29"]
[Round "8"]
[White "KubaGepard"]
[Black "KetiGrant"]
[Result "0-1"]
[WhiteElo "2282"]
[BlackElo "2439"]
[TimeControl "180+1"]
[EndTime "11:26:09 PST"]
[Termination "KetiGrant won by resignation"]

1. e4 {[%clk 0:03:00.9]} 1... c5 {[%clk 0:02:59.1]} 2. Nf3 {[%clk 0:03:00.2]}
2... Nc6 {[%clk 0:02:59.3]} 3. Nc3 {[%clk 0:02:59]} 3... e5 {[%clk 0:02:58.2]}
4. Bc4 {[%clk 0:02:55.1]} 4... Be7 {[%clk 0:02:57.7]} 5. d3 {[%clk 0:02:53.2]}
5... Nf6 {[%clk 0:02:56.2]} 6. O-O {[%clk 0:02:47]} 6... O-O {[%clk 0:02:56]} 7.
a3 {[%clk 0:02:44]} 7... d6 {[%clk 0:02:51.3]} 8. Ne2 {[%clk 0:02:35.5]} 8...
Be6 {[%clk 0:02:49.3]} 9. b3 {[%clk 0:02:33.4]} 9... d5 {[%clk 0:02:46.8]} 10.
exd5 {[%clk 0:02:29.2]} 10... Nxd5 {[%clk 0:02:47.7]} 11. Bb2 {[%clk 0:02:27.6]}
11... f6 {[%clk 0:02:47.3]} 12. Ng3 {[%clk 0:02:24.4]} 12... Qd7 {[%clk
0:02:46.9]} 13. Re1 {[%clk 0:02:19.2]} 13... a6 {[%clk 0:02:43.6]} 14. a4 {[%clk
0:02:18.1]} 14... Na5 {[%clk 0:02:41.5]} 15. Nh4 {[%clk 0:02:14.7]} 15... Nxc4
{[%clk 0:02:37.2]} 16. dxc4 {[%clk 0:02:15.6]} 16... Nb4 {[%clk 0:02:33.6]} 17.
Qe2 {[%clk 0:02:10.9]} 17... Bg4 {[%clk 0:02:24.5]} 18. f3 {[%clk 0:02:06.6]}
18... Be6 {[%clk 0:02:23.5]} 19. Rad1 {[%clk 0:02:05]} 19... Qc8 {[%clk
0:02:21.1]} 20. c3 {[%clk 0:02:03.3]} 20... Nc6 {[%clk 0:02:19.5]} 21. f4 {[%clk
0:01:43.1]} 21... Bg4 {[%clk 0:02:14.1]} 22. Nf3 {[%clk 0:01:41.6]} 22... exf4
{[%clk 0:02:13.2]} 23. Ne4 {[%clk 0:01:39.1]} 23... Re8 {[%clk 0:02:10.9]} 24.
Qf2 {[%clk 0:01:32.9]} 24... Ne5 {[%clk 0:02:04.2]} 25. Rd5 {[%clk 0:01:26.7]}
25... Bxf3 {[%clk 0:01:58.8]} 26. gxf3 {[%clk 0:01:25.5]} 26... Qh3 {[%clk
0:01:58.2]} 27. Nd2 {[%clk 0:01:24.2]} 27... Rad8 {[%clk 0:01:52.6]} 28. Qg2
{[%clk 0:01:23.5]} 28... Qh5 {[%clk 0:01:42]} 29. Rf1 {[%clk 0:01:13.4]} 29...
Rxd5 {[%clk 0:01:37]} 30. cxd5 {[%clk 0:01:14.3]} 30... Nd3 {[%clk 0:01:37.4]}
31. Ne4 {[%clk 0:01:10]} 31... Nxb2 {[%clk 0:01:28.4]} 32. Qxb2 {[%clk
0:01:08.9]} 32... Qxd5 {[%clk 0:01:28.9]} 33. c4 {[%clk 0:01:05]} 33... Qd3
{[%clk 0:01:27.3]} 34. Rf2 {[%clk 0:00:54.3]} 34... f5 {[%clk 0:01:25.8]} 35.
Nd2 {[%clk 0:00:50.9]} 35... Bf6 {[%clk 0:01:25.2]} 36. Qc1 {[%clk 0:00:46.7]}
36... Bd4 {[%clk 0:01:23.3]} 0-1